bitfinex-derivatives/quotes_BNBF0:USTF0_20250509
["timestamp","ask_amount","ask_price","bid_price","bid_amount"]
[1746831719135,0.714,645.6,643.62,0.31074236]
[1746831719337,2.71610671,645.6,643.62,0.31074236]
[1746831719530,0.25685875,645.59,643.62,0.31074236]
[1746831719731,0.25685875,645.58,643.62,0.31074236]
[1746831720435,0.25685875,645.57,643.62,0.31074236]
[1746831720737,0.25685875,645.56,643.62,0.31074236]
[1746831721036,0.25685875,645.55,643.62,0.31074236]
[1746831721336,2.71610671,645.6,643.62,0.31074236]
[1746831721738,0.25685899,645.59,643.62,0.31074236]
[1746831721932,0.25685899,645.59,643.63,0.28523013]
[1746831722139,2.71610671,645.6,643.63,0.28523013]
[1746831722140,2.00210671,645.51,643.65,0.31072788]
[1746831722538,0.25685899,645.5,643.65,0.31072788]
[1746831722738,0.25685899,645.5,643.66,0.28523013]
[1746831723038,0.25685899,645.5,643.68,0.31071339]
[1746831723540,0.25685899,645.49,643.68,0.31071339]
[1746831723835,0.25685899,645.48,643.68,0.31071339]
[1746831724241,0.25685899,645.47,643.68,0.31071339]
[1746831724644,2.00210671,645.36,643.68,0.31071339]
[1746831725141,0.25685899,645.35,643.68,0.31071339]
[1746831726736,0.27001548,645.34,643.68,0.31071339]
[1746831727138,0.25685899,645.33,643.68,0.31071339]
[1746831729542,0.72685899,645.33,643.68,0.31071339]
[1746831730038,0.52687971,645.32,643.68,0.31071339]
[1746831730342,0.25685899,645.31,643.68,0.31071339]
[1746831730642,0.27002072,645.32,643.68,0.31071339]
[1746831730943,0.25690898,645.31,643.68,0.31071339]
[1746831733046,0.27000186,645.3,643.68,0.31071339]
[1746831733340,0.25690854,645.29,643.68,0.31071339]
[1746831733839,0.25690854,645.28,643.68,0.31071339]
[1746831734247,0.25690854,645.27,643.68,0.31071339]
[1746831734547,0.25690854,645.29,643.68,0.31071339]
[1746831735448,0.55,645.28,643.68,0.31071339]
[1746831735942,0.52689155,645.27,643.68,0.31071339]
[1746831736246,0.25690854,645.26,643.68,0.31071339]
[1746831738154,0.26998301,645.27,643.68,0.31071339]
[1746831738353,0.25690887,645.26,643.68,0.31071339]
[1746831738953,0.26997568,645.25,643.68,0.31071339]
[1746831739248,0.25690887,645.24,643.68,0.31071339]
[1746831739555,0.25690887,645.23,643.68,0.31071339]
[1746831739854,0.25690887,645.22,643.68,0.31071339]
[1746831740154,0.26997568,645.25,643.68,0.31071339]
[1746831740556,0.25690721,645.24,643.68,0.31071339]
[1746831740954,0.25690721,645.23,643.68,0.31071339]
[1746831741153,0.26997568,645.25,643.68,0.31071339]
[1746831741354,0.2569077,645.24,643.68,0.31071339]
[1746831741658,0.2569077,645.23,643.68,0.31071339]
[1746831742055,0.52687919,645.23,643.68,0.31071339]
[1746831742256,0.2569077,645.22,643.68,0.31071339]
[1746831742756,0.2569077,645.21,643.68,0.31071339]
[1746831743257,0.2569077,645.2,643.68,0.31071339]
[1746831743759,0.2569077,645.19,643.68,0.31071339]
[1746831743961,0.26997149,645.23,643.68,0.31071339]
[1746831744260,0.848,645.19,643.68,0.31071339]
[1746831744656,0.25690893,645.18,643.68,0.31071339]
[1746831745360,0.25690893,645.17,643.68,0.31071339]
[1746831745661,0.25690893,645.16,643.68,0.31071339]
[1746831745963,0.25690893,645.15,643.68,0.31071339]
[1746831746362,0.25690893,645.14,643.68,0.31071339]
[1746831746558,0.25690893,645.13,643.68,0.31071339]
[1746831746962,0.25690893,645.12,643.68,0.31071339]
[1746831747262,0.25690893,645.11,643.68,0.31071339]
[1746831747862,0.25690893,645.18,643.68,0.31071339]
[1746831748364,0.25690893,645.1,643.68,0.31071339]
[1746831748565,0.25690893,645.17,643.68,0.31071339]
[1746831748861,0.25690893,645.18,643.68,0.31071339]
[1746831749661,0.25690893,645.17,643.68,0.31071339]
[1746831749967,0.25690893,645.18,643.68,0.31071339]
[1746831750266,0.25690893,645.17,643.68,0.31071339]
[1746831750769,0.25690893,645.18,643.68,0.31071339]
[1746831750961,1.11797673,645.19,643.68,0.31071339]
[1746831751271,0.25690885,645.18,643.68,0.31071339]
[1746831756574,1.11797568,645.19,643.68,0.31071339]
[1746831756771,0.25690898,645.18,643.68,0.31071339]
[1746831757676,0.848,645.19,643.68,0.31071339]
[1746831757975,1.11797568,645.19,643.68,0.31071339]
[1746831758171,0.25690853,645.18,643.68,0.31071339]
[1746831763180,0.25690853,645.21,643.68,0.31071339]
[1746831764180,0.27003643,645.2,643.68,0.31071339]
[1746831764582,0.25690853,645.19,643.68,0.31071339]
[1746831765679,0.92590853,645.19,643.68,0.31071339]
[1746831765882,0.25690853,645.18,643.68,0.31071339]
[1746831769286,0.645,645.17,643.68,0.31071339]
[1746831769683,0.25690853,645.16,643.68,0.31071339]
[1746831770287,0.645,645.17,643.68,0.31071339]
[1746831770586,0.25685028,645.16,643.68,0.31071339]
[1746831772187,0.47,645.15,643.68,0.31071339]
[1746831772688,0.25685028,645.14,643.68,0.31071339]
[1746831782891,0.47,645.15,643.68,0.31071339]
[1746831783191,0.25684215,645.14,643.68,0.31071339]
[1746831786494,0.25684215,645.16,643.68,0.31071339]
[1746831786695,0.976,645.13,643.68,0.31071339]
[1746831787191,0.25684215,645.12,643.68,0.31071339]
[1746831788996,0.47,645.11,643.68,0.31071339]
[1746831789695,0.25684215,645.1,643.68,0.31071339]
[1746831794898,0.47,645.11,643.68,0.31071339]
[1746831795298,0.25684518,645.1,643.68,0.31071339]
[1746831799902,0.78,645.09,643.68,0.31071339]
[1746831800101,0.25684518,645.08,643.68,0.31071339]
[1746831800801,0.78,645.09,643.68,0.31071339]
[1746831801203,0.25685665,645.08,643.68,0.31071339]
[1746831802597,0.89285665,645.08,643.68,0.31071339]
[1746831802996,0.25685665,645.07,643.68,0.31071339]
[1746831809302,0.72685665,645.07,643.68,0.31071339]
[1746831809806,0.25685665,645.06,643.68,0.31071339]
[1746831816713,0.47,645.07,643.68,0.31071339]
[1746831816914,0.25685839,645.06,643.68,0.31071339]
[1746831822619,0.47,645.07,643.68,0.31071339]
[1746831823016,0.25685534,645.06,643.68,0.31071339]
[1746831829020,0.898,645.05,643.68,0.31071339]
[1746831829324,0.25685534,645.04,643.68,0.31071339]
[1746831831727,0.7,645.03,643.68,0.31071339]
[1746831832028,0.25685534,645.02,643.68,0.31071339]
[1746831836633,0.471,645.01,643.68,0.31071339]
[1746831837035,0.25682529,645.0,643.68,0.31071339]
[1746831838634,0.471,645.01,643.68,0.31071339]
[1746831841637,0.25682509,645.0,643.68,0.31071339]
[1746831841936,0.471,645.01,643.68,0.31071339]
[1746831843636,0.25682623,645.0,643.68,0.31071339]
[1746831850344,0.471,645.01,643.68,0.31071339]
[1746831850539,0.2568242,645.0,643.68,0.31071339]
[1746831852343,0.2568242,645.04,643.68,0.31071339]
[1746831853544,0.26995055,645.38,643.68,0.31071339]
[1746831853845,0.25682343,645.37,643.68,0.31071339]
[1746831854141,0.562,645.36,643.68,0.31071339]
[1746831854545,0.72782343,645.35,643.68,0.31071339]
[1746831854941,0.25682343,645.34,643.68,0.31071339]
[1746831856247,1.017,645.33,643.68,0.31071339]
[1746831856746,0.25682343,645.32,643.68,0.31071339]
[1746831869560,0.25682343,645.32,643.69,0.28519273]
[1746831869757,0.25682343,645.32,643.71,0.31069891]
[1746831872360,1.017,645.33,643.71,0.31069891]
[1746831872753,0.25682458,645.32,643.71,0.31069891]
[1746831873860,0.25682458,645.35,643.71,0.31069891]
[1746831876763,0.469,645.34,643.71,0.31069891]
[1746831877062,1.379,645.34,643.71,0.31069891]
[1746831877263,0.25682458,645.33,643.71,0.31069891]
[1746831877563,1.379,645.34,643.71,0.31069891]
[1746831878063,0.25681221,645.33,643.71,0.31069891]
[1746831878463,0.25681221,645.33,643.72,0.2851836]
[1746831878864,0.25681221,645.33,643.71,0.31069891]
[1746831880363,0.25681221,645.33,643.72,0.28518287]
[1746831880565,0.25681221,645.33,643.74,0.31068443]
[1746831890468,0.25681221,645.33,643.75,0.28510787]
[1746831890668,0.25681221,645.33,643.77,0.31066995]
[1746831891073,0.25681221,645.33,643.78,0.28510787]
[1746831891273,0.25681221,645.33,643.8,0.31065548]
[1746831891474,0.25681221,645.33,643.8,0.30078528]
[1746831892675,1.00681221,645.33,643.8,0.30078528]
[1746831893182,0.25681221,645.32,643.8,0.30078528]
[1746831895496,0.25681221,645.32,643.81,0.28509934]
[1746831896394,0.25681221,645.32,643.83,0.310641]
[1746831897185,0.25681221,645.32,643.84,0.28509934]
[1746831897382,0.25681221,645.32,643.86,0.31062653]
[1746831897584,0.75,645.33,643.86,0.31062653]
[1746831906786,1.219,645.33,643.86,0.31062653]
[1746831911893,2.052,645.33,643.86,0.31062653]
[1746831915691,0.25621887,645.32,643.87,0.28505922]
[1746831915897,0.25621887,645.32,643.89,0.31061206]
[1746831916597,0.25621887,645.32,643.9,0.28505922]
[1746831916790,0.25621887,645.32,643.92,0.31059758]
[1746831917397,0.25621887,645.32,643.93,0.28505922]
[1746831917590,0.25621887,645.32,643.95,0.31058311]
[1746831918091,0.25621887,645.32,643.96,0.28505922]
[1746831918396,1.302,645.33,643.95,0.31058311]
[1746831919294,2.284,645.33,643.95,0.31058311]
[1746831929503,0.25622158,645.32,643.95,0.31058311]
[1746831930803,0.982,645.33,643.95,0.31058311]
[1746831932105,1.742,645.33,643.95,0.31058311]
[1746831933406,2.211,645.33,643.95,0.31058311]
[1746831938812,0.25621959,645.32,643.95,0.31058311]
[1746831939613,0.25621959,645.32,643.96,0.28506063]
[1746831940413,0.25621959,645.32,643.98,0.31056865]
[1746831940811,0.25621959,645.32,643.99,0.28506063]
[1746831941013,0.25621959,645.32,644.01,0.31055418]
[1746831942412,0.25621959,645.32,644.02,0.28505994]
[1746831943514,0.25621959,645.32,644.01,0.31055418]
[1746831946514,0.469,645.33,644.01,0.31055418]
[1746831946719,0.59,645.32,644.01,0.31055418]
[1746831947218,1.577,645.32,644.01,0.31055418]
[1746831952723,1.577,645.32,644.02,0.28490095]
[1746831953022,1.577,645.32,644.04,0.31053971]
[1746831953617,1.577,645.32,644.05,0.28490095]
[1746831953818,1.577,645.32,644.07,0.31052525]
[1746831956227,2.046,645.32,644.07,0.31052525]
[1746831961827,2.046,645.32,644.08,0.2849631]
[1746831962024,2.046,645.32,644.1,0.31051079]
[1746831962329,2.046,645.32,644.11,0.2849631]
[1746831962629,2.046,645.32,644.13,0.31049632]
[1746831963225,0.2561303,645.31,644.14,0.2849631]
[1746831963425,0.2561303,645.31,644.16,0.31048186]
[1746831963627,0.2561303,645.31,644.17,0.2849631]
[1746831963831,0.2561303,645.31,644.19,0.3104674]
[1746831964429,1.456,645.32,644.2,0.2849631]
[1746831964631,1.456,645.32,644.22,0.31045295]
[1746831967233,2.202,645.32,644.22,0.31045295]
[1746831989548,2.202,645.32,644.23,0.28469724]
[1746831989747,2.202,645.32,644.25,0.31043849]
[1746831990247,2.202,645.32,644.27,0.96941781]
[1746831990446,2.202,645.32,644.29,0.31041922]
[1746831991052,2.202,645.32,644.3,0.28469724]
[1746831991348,2.202,645.32,644.32,0.31040476]
[1746831991856,2.202,645.32,644.33,0.28469724]
[1746831992050,2.202,645.32,644.35,0.31039031]
[1746831992853,2.202,645.32,644.36,0.28469724]
[1746831993052,2.202,645.32,644.38,0.31037586]
[1746831993254,2.202,645.32,644.39,0.28469724]
[1746831993450,2.202,645.32,644.41,0.31036141]
[1746831994053,2.202,645.32,644.42,0.28469724]
[1746831994248,2.202,645.32,644.44,0.31034696]
[1746831994653,2.202,645.32,644.45,0.28469724]
[1746831994850,2.202,645.32,644.47,0.31033252]
[1746831995153,2.202,645.32,644.48,0.28469724]
[1746831995455,2.202,645.32,644.5,0.31031807]
[1746831995955,2.202,645.32,644.51,0.28469724]
[1746831996156,2.202,645.32,644.53,0.31030363]
[1746831996555,2.202,645.32,644.54,0.28469724]
[1746831996751,2.202,645.32,644.55,0.310294]
[1746831997157,2.202,645.32,644.56,0.28469724]
[1746831997355,2.202,645.32,644.57,0.31028437]
[1746831997656,2.202,645.32,644.58,0.28469724]
[1746831997849,2.202,645.32,644.59,0.31027474]
[1746831998257,2.202,645.32,644.6,0.28469724]
[1746831998556,2.202,645.32,644.61,0.31026512]
[1746831999057,2.202,645.32,644.62,0.28469724]
[1746831999261,2.202,645.32,644.63,0.31025549]
[1746831999859,2.202,645.32,644.64,0.28469724]
[1746832000057,2.202,645.32,644.65,0.31024586]
[1746832000559,2.202,645.32,644.66,0.28469724]
[1746832000756,2.202,645.32,644.67,0.31023624]
[1746832001056,2.202,645.32,644.68,0.28469724]
[1746832001259,2.202,645.32,644.69,0.31022662]
[1746832001660,2.202,645.32,644.7,0.28469724]
[1746832002661,2.202,645.32,644.71,0.31021699]
[1746832003059,2.202,645.32,644.72,0.28469724]
[1746832003360,2.202,645.32,644.71,0.31021699]
[1746832006265,2.202,645.32,644.72,0.28463921]
[1746832007861,2.202,645.32,644.71,0.31021699]
[1746832048683,2.202,645.32,644.72,0.28475486]
[1746832048891,2.202,645.32,644.73,0.31020737]
[1746832049591,2.202,645.32,644.74,0.28475486]
[1746832050491,2.202,645.32,644.75,0.31019775]
[1746832076509,2.202,645.32,644.76,0.28466558]
[1746832076710,2.202,645.32,644.77,0.31018812]
[1746832077306,2.202,645.32,644.78,0.28466558]
[1746832077507,2.202,645.32,644.79,0.3101785]
[1746832077711,2.202,645.32,644.8,0.28466558]
[1746832078008,0.469,645.32,644.81,0.31016888]
[1746832078410,0.469,645.32,644.82,0.28466558]
[1746832078611,0.469,645.32,644.83,0.31015926]
[1746832079211,0.469,645.32,644.84,0.28466558]
[1746832079409,0.469,645.32,644.85,0.31014964]
[1746832079708,0.26955744,646.54,644.85,0.31014964]
[1746832080013,0.25580629,646.53,644.85,0.31014964]
[1746832080612,0.25580629,646.52,644.86,0.2846429]
[1746832080810,0.25580629,646.52,644.88,0.31013521]
[1746832081114,1.03880629,646.51,644.88,0.31013521]
[1746832081314,1.03880629,646.51,644.89,0.2846429]
[1746832081614,0.82680629,646.5,644.91,0.31012079]
[1746832081809,0.25580629,646.49,644.92,0.2846429]
[1746832082012,0.25580629,646.49,644.94,0.31010636]
[1746832082914,0.47,646.48,644.94,0.31010636]
[1746832083312,0.25580629,646.47,644.94,0.31010636]
[1746832086116,0.47,646.48,644.94,0.31010636]
[1746832087116,0.26944369,646.47,644.94,0.31010636]
[1746832087314,0.52524881,646.47,644.94,0.31010636]
[1746832087616,0.25580512,646.46,644.94,0.31010636]
[1746832089417,0.26944369,646.47,644.94,0.31010636]
[1746832089917,0.25580496,646.46,644.94,0.31010636]
[1746832090314,0.25580496,646.47,644.94,0.31010636]
[1746832091219,0.52524344,646.47,644.94,0.31010636]
[1746832091917,0.25580496,646.46,644.94,0.31010636]
[1746832092120,0.26943848,646.47,644.94,0.31010636]
[1746832092522,0.25580283,646.46,644.94,0.31010636]
[1746832093222,0.25580283,646.47,644.94,0.31010636]
[1746832094122,0.52564244,646.47,644.94,0.31010636]
[1746832094622,0.25580283,646.46,644.94,0.31010636]
[1746832095320,0.26983961,646.47,644.94,0.31010636]
[1746832095619,0.25582645,646.46,644.94,0.31010636]
[1746832096123,0.25582645,646.47,644.94,0.31010636]
[1746832097124,0.26944369,646.46,644.94,0.31010636]
[1746832097523,0.25582645,646.45,644.94,0.31010636]
[1746832099123,0.26946873,646.44,644.94,0.31010636]
[1746832099641,0.25582645,646.43,644.94,0.31010636]
[1746832102128,0.26946873,646.42,644.94,0.31010636]
[1746832102631,0.25582645,646.41,644.94,0.31010636]
[1746832105229,0.47,646.4,644.94,0.31010636]
[1746832105429,0.25582645,646.39,644.94,0.31010636]
[1746832106129,0.567,646.38,644.94,0.31010636]
[1746832106429,0.25582645,646.37,644.94,0.31010636]
[1746832113231,0.785,646.36,644.94,0.31010636]
[1746832113528,0.25582645,646.35,644.94,0.31010636]
[1746832114630,0.785,646.36,644.94,0.31010636]
[1746832114935,0.25585758,646.35,644.94,0.31010636]
[1746832116537,0.785,646.36,644.94,0.31010636]
[1746832117132,0.2558363,646.35,644.94,0.31010636]
[1746832119239,0.47,646.34,644.94,0.31010636]
[1746832119539,0.2558363,646.33,644.94,0.31010636]
[1746832121943,0.2558363,646.33,644.95,0.28459548]
[1746832122246,0.2558363,646.33,644.97,0.31009194]
[1746832122643,0.2558363,646.33,644.98,0.28459548]
[1746832122850,0.2558363,646.33,645.0,0.31007751]
[1746832125347,0.2558363,646.33,645.01,0.2845875]
[1746832125547,0.2558363,646.33,645.03,0.31006309]
[1746832126146,0.2558363,646.33,645.04,0.2845875]
[1746832126347,0.2558363,646.33,645.06,0.31004867]
[1746832126541,0.47,646.34,645.06,0.31004867]
[1746832127546,0.47,646.34,645.07,0.28438239]
[1746832127847,0.47,646.34,645.09,0.31003425]
[1746832128047,0.743,646.33,645.1,0.28438239]
[1746832128242,0.743,646.33,645.12,0.31001984]
[1746832128745,0.743,646.33,645.13,0.28438239]
[1746832129050,1.614,646.33,645.15,0.31000542]
[1746832129446,1.614,646.33,645.16,0.28438239]
[1746832129642,1.614,646.33,645.18,0.30999101]
[1746832131949,1.614,646.33,645.19,0.28432948]
[1746832132150,1.614,646.33,645.21,0.30997659]
[1746832132552,1.614,646.33,645.22,0.28432948]
[1746832132851,1.614,646.33,645.24,0.30996218]
[1746832133346,1.614,646.33,645.25,0.28432948]
[1746832133551,1.614,646.33,645.27,0.30994777]
[1746832134150,1.614,646.33,645.28,0.28432948]
[1746832134351,1.614,646.33,645.3,0.30993336]
[1746832134746,1.614,646.33,645.31,0.28432948]
[1746832134948,1.614,646.33,645.33,0.30991895]
[1746832135147,1.614,646.33,645.34,0.28432948]
[1746832135354,1.614,646.33,645.36,0.30990454]
[1746832135848,1.614,646.33,645.37,0.28432948]
[1746832136052,1.614,646.33,645.39,0.30989014]
[1746832136352,1.614,646.33,645.4,0.28432948]
[1746832136652,1.614,646.33,645.42,0.30987573]
[1746832137050,1.614,646.33,645.43,0.28432948]
[1746832137256,1.614,646.33,645.45,0.30986133]
[1746832137758,1.614,646.33,645.46,0.28432948]
[1746832137962,1.614,646.33,645.48,0.30984693]
[1746832138354,1.614,646.33,645.49,0.28432948]
[1746832138750,1.614,646.33,645.51,0.30983253]
[1746832138956,1.614,646.33,645.52,0.28432948]
[1746832139151,1.614,646.33,645.54,0.30981813]
[1746832139958,1.614,646.33,645.55,0.28419486]
[1746832140156,1.614,646.33,645.56,0.30980853]
[1746832140858,1.614,646.33,645.57,0.28419155]
[1746832141055,1.614,646.33,645.58,0.30979894]
[1746832141559,1.614,646.33,645.59,0.28419155]
[1746832141859,1.614,646.33,645.6,0.30978934]
[1746832142260,1.614,646.33,645.61,0.28419155]
[1746832142556,1.614,646.33,645.62,0.30977974]
[1746832143466,1.614,646.33,645.63,0.2841692]
[1746832143662,1.614,646.33,645.64,0.30977015]
[1746832144364,1.614,646.33,645.65,0.2841692]
[1746832145259,1.614,646.33,645.66,0.30976055]
[1746832145659,1.614,646.33,645.67,0.2841692]
[1746832145866,1.614,646.33,645.68,0.30975096]
[1746832146160,1.614,646.33,645.69,0.2841692]
[1746832146364,1.614,646.33,645.7,0.30974136]
[1746832146766,1.614,646.33,645.71,0.2841692]
[1746832146960,1.614,646.33,645.72,0.30973177]
[1746832147666,1.614,646.33,645.73,0.2841692]
[1746832148567,1.614,646.33,645.72,0.30973177]
[1746832149168,2.085,646.33,645.72,0.30973177]
[1746832153270,2.085,646.33,645.73,0.28416932]
[1746832153470,2.085,646.33,645.74,0.30972217]
[1746832154574,2.085,646.33,645.75,0.28417267]
[1746832154772,2.085,646.33,645.76,0.30971258]
[1746832155372,2.085,646.33,645.77,0.28417267]
[1746832155569,2.085,646.33,645.78,0.30970299]
[1746832156071,2.085,646.33,645.79,0.28417267]
[1746832156268,2.085,646.33,645.8,0.3096934]
[1746832156572,0.471,646.33,645.8,0.3096934]
[1746832156774,0.471,646.33,645.81,0.28417267]
[1746832156974,0.471,646.33,645.82,0.30968381]
[1746832157574,0.471,646.33,645.83,0.28417267]
[1746832158976,0.471,646.33,645.84,0.30967422]
[1746832159474,0.471,646.33,645.85,0.28417267]
[1746832160476,0.471,646.33,645.86,0.30966463]
[1746832161075,0.471,646.33,645.87,0.28417267]
[1746832161276,0.471,646.33,645.88,0.30965504]
[1746832168373,0.471,646.33,645.89,0.28409636]
[1746832168774,0.471,646.33,645.9,0.30964545]
[1746832169177,0.471,646.33,645.91,0.28409636]
[1746832169879,0.471,646.33,645.92,0.30963586]
[1746832170279,0.471,646.33,645.93,0.28409636]
[1746832170579,0.471,646.33,645.94,0.30962628]
[1746832173077,1.429,646.38,645.94,0.30962628]
[1746832174782,0.681,646.38,645.94,0.30962628]
[1746832183784,0.471,646.42,645.94,0.30962628]
[1746832238119,0.25564287,646.41,645.94,0.30962628]
[1746832244423,0.471,646.42,645.94,0.30962628]
[1746832276047,0.471,646.42,645.95,0.28409975]
[1746832276343,0.26906974,647.73,645.95,0.28409975]
[1746832276547,0.25526598,647.72,645.95,0.28409975]
[1746832278948,0.603,647.71,645.95,0.28409975]
[1746832279349,0.25526598,647.7,645.95,0.28409975]
[1746832279547,0.72726598,647.7,645.95,0.28409975]
[1746832279949,0.25526598,647.69,645.95,0.28409975]
[1746832280750,1.129,647.7,645.94,0.57841338]
[1746832282753,1.129,647.7,645.95,0.28402598]
[1746832283553,1.129,647.7,645.96,0.28402598]
[1746832283852,1.129,647.7,645.95,0.28402598]
[1746832284354,0.2551019,647.69,645.96,0.28402598]
[1746832284754,1.129,647.7,645.95,0.28402598]
[1746832285956,1.129,647.7,645.97,0.3096119]
[1746832286357,1.129,647.7,645.98,0.28402598]
[1746832286559,1.129,647.7,646.0,0.30959752]
[1746832287059,1.129,647.7,646.01,0.28402598]
[1746832287258,1.129,647.7,646.03,0.30958314]
[1746832287756,1.129,647.7,646.04,0.28402598]
[1746832288158,1.129,647.7,646.06,0.30956877]
[1746832288658,1.129,647.7,646.07,0.28402598]
[1746832288963,1.129,647.7,646.09,0.30955439]
[1746832289262,1.129,647.7,646.1,0.28402598]
[1746832289462,1.129,647.7,646.12,0.30954002]
[1746832289965,1.129,647.7,646.13,0.28402598]
[1746832290162,1.129,647.7,646.15,0.30952565]
[1746832290662,1.129,647.7,646.16,0.28402598]
[1746832290858,1.129,647.7,646.18,0.30951128]
[1746832291259,1.129,647.7,646.19,0.28402598]
[1746832291564,1.129,647.7,646.21,0.30949691]
[1746832292465,1.129,647.7,646.22,0.28384403]
[1746832292667,1.129,647.7,646.24,0.30948254]
[1746832293067,1.129,647.7,646.25,0.28384403]
[1746832293265,1.129,647.7,646.27,0.30946817]
[1746832294169,1.129,647.7,646.28,0.28384403]
[1746832294369,1.129,647.7,646.3,0.30945381]
[1746832295169,1.129,647.7,646.31,0.28384403]
[1746832296768,1.129,647.7,646.33,0.30943945]
[1746832297369,1.129,647.7,646.34,0.28384403]
[1746832297571,1.129,647.7,646.36,0.30942508]
[1746832298269,1.129,647.7,646.37,0.28384403]
[1746832298971,1.129,647.7,646.39,0.30941072]
[1746832299272,1.129,647.7,646.4,0.28384403]
[1746832299667,1.129,647.7,646.42,0.30939636]
[1746832300170,1.129,647.7,646.43,0.28384403]
[1746832300366,1.129,647.7,646.45,0.309382]
[1746832300768,1.129,647.7,646.46,0.28384403]
[1746832300968,1.129,647.7,646.48,0.30936765]
[1746832301573,1.129,647.7,646.49,0.28384403]
[1746832301774,1.129,647.7,646.51,0.30935329]
[1746832302274,1.129,647.7,646.52,0.28384403]
[1746832302574,1.129,647.7,646.54,0.30933894]
[1746832303575,1.129,647.7,646.55,0.28384403]
[1746832303875,1.129,647.7,646.57,0.30932458]
[1746832304379,1.129,647.7,646.58,0.28384403]
[1746832304575,1.129,647.7,646.6,0.30931023]
[1746832305276,1.129,647.7,646.61,0.28384403]
[1746832305771,1.129,647.7,646.62,0.28384403]
[1746832306271,1.129,647.7,646.61,0.28384403]
[1746832307475,1.129,647.7,646.62,0.28384403]
[1746832307775,1.129,647.7,646.63,0.28384403]
[1746832308176,1.129,647.7,646.64,0.28384403]
[1746832308476,1.129,647.7,646.65,0.28384403]
[1746832309171,1.129,647.7,646.66,0.28384403]
[1746832309577,1.129,647.7,646.67,0.28384403]
[1746832309772,1.129,647.7,646.68,0.28384403]
[1746832310077,1.129,647.7,646.6,0.30931023]
[1746832310078,1.129,647.7,646.69,0.28384403]
[1746832310282,1.129,647.7,646.71,0.30925762]
[1746832310678,1.898,647.7,646.72,0.28384403]
[1746832310877,1.898,647.7,646.74,0.30924328]
[1746832311380,1.898,647.7,646.75,0.28384403]
[1746832311874,1.898,647.7,646.77,0.30922893]
[1746832312476,1.898,647.7,646.78,0.28384403]
[1746832312674,1.898,647.7,646.8,0.30921459]
[1746832313177,1.898,647.7,646.81,0.28384403]
[1746832313674,1.898,647.7,646.82,0.28384403]
[1746832313881,1.898,647.7,646.84,0.30919547]
[1746832314078,1.898,647.7,646.85,0.28384403]
[1746832314278,1.898,647.7,646.87,0.30918113]
[1746832314681,1.898,647.7,646.88,0.28384403]
[1746832314882,1.898,647.7,646.9,0.30916679]
[1746832315581,1.898,647.7,646.91,0.28384403]
[1746832315781,1.898,647.7,646.92,0.30915723]
[1746832316083,1.898,647.7,646.93,0.28384403]
[1746832316281,1.898,647.7,646.94,0.30914767]
[1746832316676,1.898,647.7,646.95,0.28384403]
[1746832316876,1.898,647.7,646.96,0.30913812]
[1746832319884,1.898,647.7,646.97,0.2836318]
[1746832320079,1.898,647.7,646.98,0.30912856]
[1746832320578,1.898,647.7,646.99,0.2836318]
[1746832320784,1.898,647.7,647.0,0.30911901]
[1746832320985,1.898,647.7,647.01,0.2836318]
[1746832321285,1.426,647.7,647.02,0.30910945]
[1746832321985,1.426,647.7,647.03,0.2836318]
[1746832322284,1.426,647.7,647.04,0.3090999]
[1746832322785,1.426,647.7,647.05,0.2836318]
[1746832322986,1.426,647.7,647.06,0.30909034]
[1746832323284,1.426,647.7,647.07,0.2836318]
[1746832323882,1.426,647.7,647.08,0.30908079]
[1746832324283,1.426,647.7,647.09,0.2836318]
[1746832324579,1.426,647.7,647.1,0.30907124]
[1746832324884,1.426,647.7,647.11,0.2836318]
[1746832325086,1.426,647.7,647.12,0.30906168]
[1746832327682,1.426,647.7,647.13,0.2836939]
[1746832329883,1.426,647.7,647.14,0.30905213]
[1746832333291,1.426,647.7,647.15,0.28364926]
[1746832333791,1.426,647.7,647.16,0.30904258]
[1746832344201,0.286,648.52,647.21,0.30901871]
[1746832344596,0.286,648.52,647.22,0.28352819]
[1746832344801,0.286,648.52,647.24,0.30900438]
[1746832344997,0.286,648.52,647.25,0.28352819]